[Event "CCT Airthings Masters Play-In 2023"]
[Site "Online"]
[Date "2023.02.03"]
[Round "4"]
[White "amintabatabaei"]
[Black "kirillshevchenko"]
[Result "1/2-1/2"]
[ECO "A48"]
[WhiteElo "2636"]
[BlackElo "2532"]
[Annotator "TA"]
[PlyCount "157"]
[EventDate "2023.02.03"]
[EventType "swiss"]
[EventCountry "NET"]
[SourceTitle "playchess.com"]
[Source "ChessBase"]
[SourceQuality "1"]
[TimeControl "600+2"]

{[%evp 18,157,22,23,15,0,0,-3,-7,-84,-79,-91,-34,-19,-33,-29,-40,-33,-26,-27,-14,-81,-91,-86,-78,-89,-64,-68,-56,-76,-74,-126,-115,-114,-95,-93,-95,-118,-108,-117,-115,-108,-115,-115,-112,-112,-108,-118,-64,-65,-64,-64,-64,-64,-64,-64,-64,-66,-65,-145,-70,-70,-68,-70,-70,-145,-70,-70,0,-145,-145,-145,-145,-146,-104,-143,-70,-145,-145,-160,-70,-93,-70,-235,-235,-235,-93,-70,-70,-235,-70,-235,-235,-235,-235,-251,-235,-235,-145,-235,-235,-235,-82,-235,-235,-235,-235,-328,-238,-246,0,0,0,0,0,-1,0,0,0,0,0,0,0,0,0,0,0,0,0,0,0,0,0,0,0,0,0,0,0,0,0,0]} 1. d4 {[%emt 0:00:03]} Nf6 {[%emt 0:00:04]} 2. Nf3 {[%emt 0:00:08]} g6 {[%emt 0:00:02]} 3. Nbd2 {[%emt 0:00:45]} Bg7 {[%emt 0:00:24]} 4. e4 {[%emt 0:00:13]} d6 {[%emt 0:00:02]} 5. Bb5+ {[%emt 0:00:08]} c6 {[%emt 0:00:04]} 6. Bd3 {[%emt 0:00:03]} O-O {[%emt 0:00:03]} 7. O-O {[%emt 0:00:02]} Nbd7 {[%emt 0:00:03]} 8. Re1 {[%emt 0:00:03]} e5 {[%emt 0:00:04]} 9. c3 {[%emt 0:00:13]} Re8 {[%emt 0:00:14]} 10. a4 {[%emt 0:00:03]} d5 {[%emt 0:01:20] A48: 1 d4 Nf6 2 Nf3 g6: Torre, London and Colle Systems.} 11. dxe5 {[%emt 0:00:25]} Nxe5 {[%emt 0:00:03]} 12. Nxe5 {[%emt 0:00:01]} Rxe5 {[%emt 0:00:00]} 13. Nf3 {[%emt 0:00:28] [#]} (13. exd5 $11 {keeps the balance.} Rxe1+ 14. Qxe1) 13... Bg4 $146 {[%emt 0:00:03][%cal Rd5e4]} ({Predecessor:} 13... Re8 14. e5 Nd7 15. Bf4 Nc5 16. h3 Nxd3 17. Qxd3 Bf5 18. Qd4 Qc8 19. Bg3 a5 {1-0 Deac,B (2625)-Sjugirov,S (2663) EU-ch qual Online 2020 (11)}) 14. Bf4 {[%emt 0:00:06]} Re8 {[%emt 0:00:06]} (14... Re6 $17 {[%cal Rd5e4]} 15. exd5 Rxe1+ 16. Qxe1 Bxf3 17. gxf3 Nxd5) 15. h3 $15 {[%emt 0:00:39]} Bh5 {[%emt 0:01:50][%cal Rd5e4]} 16. e5 {[%emt 0:00:35]} Bxf3 {[%emt 0:00:01]} 17. Qxf3 {[%emt 0:00:00]} Nd7 $1 {[%emt 0:00:01][%cal Rg7e5]} 18. Qg3 {[%emt 0:00:02][%cal Od3f5]} Re6 {[%emt 0:00:44]} 19. Re2 {[%emt 0:00:25]} (19. c4 $1 $11) 19... Qc7 $1 $17 {[%emt 0:00:01]} 20. Rae1 {[%emt 0:00:08]} Rae8 {[%emt 0:00:05][%cal Rg7e5]} 21. c4 {[%emt 0:01:29]} a6 {[%emt 0:01:43][%cal Rg7e5]} 22. cxd5 {[%emt 0:00:21]} cxd5 {[%emt 0:00:01][%cal Rg7e5]} 23. Rc1 {[%emt 0:01:04]} Qb6 {[%emt 0:00:25][%cal Rg7e5]} 24. Rd2 {[%emt 0:01:11]} ({Better is} 24. Be3 Qb3 25. Bc2 Qxb2 26. Qf3 Nxe5 27. Qxd5) 24... Bxe5 {[%emt 0:00:22]} 25. Bxe5 {[%emt 0:00:01]} Nxe5 {[%emt 0:00:05]} 26. Bf1 {[%emt 0:00:01]} d4 {[%emt 0:01:49]} 27. Rcd1 {[%emt 0:00:36]} Rd8 {[%emt 0:00:05]} 28. Qf4 {[%emt 0:00:03][%cal Rd2d4] [#]} d3 $1 {[%emt 0:00:35][%mdl 576] Deflection} 29. Bxd3 {[%emt 0:00:17]} Nxd3 {[%emt 0:00:01]} 30. Rxd3 {[%emt 0:00:01]} Rxd3 {[%emt 0:00:00]} 31. Rxd3 {[%emt 0:00:00]} Qxb2 {[%emt 0:00:00][%mdl 4096] Endgame KQR-KQR} ({Don't play} 31... Re1+ $6 32. Kh2 $11) 32. Rd7 {[%emt 0:00:18]} Qa1+ {[%emt 0:00:04]} (32... Rf6 $17 33. Qe3 Kg7) 33. Kh2 $15 {[%emt 0:00:05]} Qf6 {[%emt 0:00:02]} (33... Rf6 {is interesting.} 34. Rd8+ Kg7 35. Qb4 Qe5+) 34. Qxf6 {[%emt 0:00:22]} Rxf6 {[%emt 0:00:01]} 35. Rxb7 {[%emt 0:00:27] KR-KR} Rf4 $1 {[%emt 0:00:08]} 36. a5 {[%emt 0:00:11]} Ra4 {[%emt 0:00:01]} 37. Ra7 {[%emt 0:00:04]} Rxa5 {[%emt 0:00:01]} 38. g3 {[%emt 0:00:07]} ({White should try} 38. g4 $15) 38... Kg7 {[%emt 0:00:01]} (38... Ra1 $17 {White must now prevent ...a5.} 39. h4 a5) 39. h4 {[%emt 0:00:01]} Kf6 {[%emt 0:00:01]} 40. Kg2 {[%emt 0:00:00]} Ra3 {[%emt 0:00:02]} 41. Kf1 {[%emt 0:00:01]} (41. Kh3 $15) 41... Ra2 {[%emt 0:00:02]} (41... a5 $17 42. Ke2 h5) 42. Kg2 {[%emt 0:00:01]} Ra3 {[%emt 0:00:01]} (42... a5 $15 43. Ra6+ Kf5) 43. Kf1 $1 $17 {[%emt 0:00:00]} a5 {[%emt 0:00:06]} 44. Ra6+ {[%emt 0:00:02]} Kg7 {[%emt 0:00:13]} 45. Kg2 {[%emt 0:00:02]} Ra1 {[%emt 0:00:05]} 46. Kf3 {[%emt 0:00:03]} Ra2 {[%emt 0:00:04]} (46... a4 $17 {...a3 is the strong threat.} 47. Ke3 a3) 47. Ke3 {[%emt 0:00:02]} (47. Ra7 $15) 47... a4 {[%emt 0:00:01]} 48. Kf3 {[%emt 0:00:00]} h5 {[%emt 0:00:04]} (48... Ra1 $17 {Threatens to win with ...a3.} 49. h5 a3) 49. Ke3 {[%emt 0:00:01]} Ra1 {[%emt 0:00:02] ...a3 would be deadly.} 50. Kf3 $2 {[%emt 0:00:01]} (50. Ke4 $15) 50... a3 $19 {[%emt 0:00:00]} 51. Kf4 {[%emt 0:00:03]} Ra2 {[%emt 0:00:04]} ({Inferior is} 51... a2 52. Ra7 Kh8 53. Kg5 $11) (51... f6 $1 $19 {has better winning chances.} 52. Ra7+ Kf8 53. Ra8+ Ke7) 52. Kf3 {[%emt 0:00:00]} Kf8 $1 {[%emt 0:00:01]} 53. Ra7 $2 {[%emt 0:00:01]} (53. Ra8+ $1 $15 Ke7 54. Ke3) 53... Ke8 $2 {[%emt 0:00:03]} (53... Ra1 $19 {Hoping for ...Ke8.} 54. Kf4 f6) 54. Ke3 $2 {[%emt 0:00:02] [#]} (54. Ke4 $15) 54... Ra1 $1 {[%emt 0:00:02]} 55. Kf3 {[%emt 0:00:01]} f6 {[%emt 0:00:14]} 56. Ra6 {[%emt 0:00:02]} Ke7 {[%emt 0:00:00]} 57. Kf4 {[%emt 0:00:01]} Ra2 {[%emt 0:00:07]} 58. Kf3 {[%emt 0:00:02] [#]} (58. Ke4 $17) 58... Kf7 $1 {[%emt 0:00:00]} 59. Ke3 {[%emt 0:00:11]} g5 $2 {[%emt 0:00:03]} (59... Ra1 $19 {is more deadly.} 60. Ra7+ Ke6) 60. hxg5 $2 {[%emt 0:00:06]} (60. Ra7+ $17 Ke6 61. Ke4) 60... fxg5 {[%emt 0:00:00]} 61. Kf3 {[%emt 0:00:01]} Ra1 {[%emt 0:00:05]} 62. Ra5 {[%emt 0:00:02]} Kf6 {[%emt 0:00:02]} 63. Kg2 {[%emt 0:00:03]} g4 $2 {[%emt 0:00:05]} (63... a2 $19 {aiming for ...g4.} 64. Ra7 Ke5) 64. Rxh5 $11 {[%emt 0:00:03] The position is equal.} Ke6 {[%emt 0:00:02]} 65. Ra5 {[%emt 0:00:03]} Kd6 {[%emt 0:00:01]} 66. f4 {[%emt 0:00:07]} gxf3+ {[%emt 0:00:04]} 67. Kxf3 {[%emt 0:00:01]} Kc6 {[%emt 0:00:00]} 68. Kg4 {[%emt 0:00:04]} Kb6 {[%emt 0:00:01]} 69. Ra8 {[%emt 0:00:00]} Kb5 {[%emt 0:00:00]} 70. Kf5 {[%emt 0:00:02]} Kb4 {[%emt 0:00:03]} 71. g4 {[%emt 0:00:01]} a2 {[%emt 0:00:01]} 72. g5 {[%emt 0:00:03]} Rf1+ {[%emt 0:00:03]} 73. Ke6 {[%emt 0:00:00]} a1=Q {[%emt 0:00:02]} 74. Rxa1 {[%emt 0:00:00]} Rxa1 {[%emt 0:00:00]} 75. g6 {[%emt 0:00:01]} Rg1 {[%emt 0:00:01]} 76. Kf7 {[%emt 0:00:01]} Kc5 {[%emt 0:00:00]} 77. g7 {[%emt 0:00:00]} Kd6 {[%emt 0:00:00]} 78. g8=R {[%emt 0:00:01]} Rxg8 {[%emt 0:00:00]} 79. Kxg8 {[%emt 0:00:00] Whites escaped into a draw.   Weighted Error Value: White=0.35/Black=0.26 (precise)} 1/2-1/2

[Event "CCT Airthings Masters Play-In 2023"]
[Site "Online"]
[Date "2023.02.03"]
[Round "4"]
[White "OparinGrigoriy"]
[Black "FabianoCaruana"]
[Result "0-1"]
[ECO "C77"]
[WhiteElo "2635"]
[BlackElo "2725"]
[Annotator "TA"]
[PlyCount "80"]
[EventDate "2023.02.03"]
[EventType "swiss"]
[EventCountry "NET"]
[SourceTitle "playchess.com"]
[Source "ChessBase"]
[SourceQuality "1"]
[TimeControl "600+2"]

{[%evp 12,80,20,17,7,-15,0,4,9,0,0,0,0,8,0,17,10,21,6,23,17,0,0,0,11,-91,27,12,16,15,12,23,14,14,16,0,11,0,18,0,19,19,22,31,16,0,30,20,22,0,0,0,19,0,0,0,0,0,0,-16,-23,-19,-16,-23,-16,-16,-16,-125,-118,-1312,-1373]} 1. e4 {[%emt 0:00:03]} e5 {[%emt 0:00:05]} 2. Nf3 {[%emt 0:00:01]} Nc6 {[%emt 0:00:00]} 3. Bb5 {[%emt 0:00:04]} a6 {[%emt 0:00:01]} 4. Ba4 {[%emt 0:00:01]} Nf6 {[%emt 0:00:01]} 5. Nc3 {[%emt 0:00:01]} b5 {[%emt 0:00:06]} 6. Bb3 {[%emt 0:00:02]} Bc5 {[%emt 0:00:01]} 7. O-O {[%emt 0:00:02]} O-O {[%emt 0:00:05] C77: Ruy Lopez: 3...a6 4 Ba4 Nf6, unusual lines.} 8. a4 {[%emt 0:00:02]} Rb8 {[%emt 0:00:02]} 9. axb5 {[%emt 0:00:02]} axb5 {[%emt 0:00:02] The position is equal.} 10. Nd5 {[%emt 0:00:02]} Nxe4 {[%emt 0:00:05]} 11. d3 {[%emt 0:00:01]} Nf6 {[%emt 0:00:00]} 12. Bg5 $1 {[%emt 0:00:02]} Be7 {[%emt 0:00:01]} 13. Nxe7+ {[%emt 0:00:01]} Qxe7 {[%emt 0:00:00]} 14. Re1 {[%emt 0:00:01]} h6 {[%emt 0:00:01]} 15. Bh4 {[%emt 0:00:03][%cal Of3e5]} Bb7 {[%emt 0:00:01]} 16. d4 {[%emt 0:00:15][%cal Rd4e5]} e4 {[%emt 0:00:02]} 17. d5 {[%emt 0:00:21]} Ne5 {[%emt 0:00:54] [#]} 18. Qd4 $146 {[%emt 0:01:14]} (18. Nxe5 $11 {remains equal.} Qxe5 19. Ra5) ({Predecessor:} 18. Rxe4 Nxf3+ 19. gxf3 Qd6 20. Rd4 Ra8 21. Rxa8 Rxa8 22. Bg3 Qb6 23. Kg2 Re8 24. Qd3 {½-½ Svane,F (2521)-Subelj,J (2498) EU-chT U18 Thessaloniki 2022 (1.1)}) 18... d6 {[%emt 0:01:32]} ({Much worse is} 18... Nxf3+ 19. gxf3 Ra8 20. Rad1 $14 (20. fxe4 Rxa1 21. Rxa1 Qxe4 $15)) (18... exf3 $17 19. Rxe5 Qd6) 19. Nxe5 {[%emt 0:02:22]} dxe5 {[%emt 0:00:02]} 20. Bxf6 {[%emt 0:02:32]} Qxf6 {[%emt 0:00:03]} 21. Qxe4 {[%emt 0:00:01]} Rfe8 {[%emt 0:00:02]} 22. Qb4 {[%emt 0:00:12]} Qb6 {[%emt 0:00:35]} 23. Ra5 {[%emt 0:00:21]} Bc8 {[%emt 0:00:33]} 24. h3 {[%emt 0:00:04]} e4 {[%emt 0:00:34]} 25. Qc3 {[%emt 0:00:12]} ({Of course not} 25. Rxe4 Rxe4 26. Qxe4 Qxa5 $17) 25... Bd7 {[%emt 0:00:33][%cal Oe4e3]} 26. Raa1 {[%emt 0:00:01]} Rbc8 {[%emt 0:00:35]} 27. Qe3 {[%emt 0:00:11] aiming for Qxb6.} Qd6 {[%emt 0:00:08]} 28. Qa7 {[%emt 0:01:22]} Qe5 {[%emt 0:00:40]} 29. c3 {[%emt 0:00:05]} b4 {[%emt 0:00:13]} 30. Qc5 {[%emt 0:00:24]} bxc3 {[%emt 0:00:06]} 31. bxc3 {[%emt 0:00:00]} Kh8 {[%emt 0:00:33]} 32. Bc2 {[%emt 0:00:31]} f5 {[%emt 0:00:03][%cal Bf7f5,Bf5f4,Bf4f3][%mdl 32]} 33. Ra5 {[%emt 0:00:11]} Rb8 {[%emt 0:00:11]} 34. Ra7 {[%emt 0:00:02]} Rec8 {[%emt 0:00:08]} 35. Rd1 {[%emt 0:00:14]} Rb2 {[%emt 0:00:07]} 36. Ba4 {[%emt 0:00:01]} Bxa4 {[%emt 0:00:37]} 37. Rxa4 {[%emt 0:00:01]} f4 {[%emt 0:00:05] [#] Threatens to win with ...e3.} 38. Qd4 {[%emt 0:00:02] Repels e3} Qh5 {[%emt 0:00:01]} 39. Re1 {[%emt 0:00:04]} (39. Raa1 $11 {keeps the balance.}) 39... e3 $1 $17 {[%emt 0:00:05]} 40. fxe3 {[%emt 0:00:06][%mdl 8192]} (40. Rf1 $17) 40... f3 {[%emt 0:00:11] Weighted Error Value: White=0.26 (precise) /Black=0.09 (flawless)} 0-1

[Event "CCT Airthings Masters Play-In 2023"]
[Site "Online"]
[Date "2023.02.03"]
[Round "4"]
[White "exoticprincess"]
[Black "Rodalquilar"]
[Result "1-0"]
[ECO "C54"]
[WhiteElo "2625"]
[BlackElo "2352"]
[Annotator "TA"]
[PlyCount "59"]
[EventDate "2023.02.03"]
[EventType "swiss"]
[EventCountry "NET"]
[SourceTitle "playchess.com"]
[Source "ChessBase"]
[SourceQuality "1"]
[TimeControl "600+2"]

{[%evp 18,59,0,0,0,0,40,0,16,13,9,0,35,39,35,30,75,74,74,59,85,90,89,89,85,82,99,85,83,75,82,80,83,85,104,104,129,129,129,129,1308,1291,1260,1208]} 1. e4 {[%emt 0:00:08]} e5 {[%emt 0:00:04]} 2. Nf3 {[%emt 0:00:05]} Nc6 {[%emt 0:00:01]} 3. Bc4 {[%emt 0:00:02]} Bc5 {[%emt 0:00:01]} 4. c3 {[%emt 0:00:02]} Nf6 {[%emt 0:00:03]} 5. d4 {[%emt 0:00:00]} exd4 {[%emt 0:00:01]} 6. e5 {[%emt 0:00:01]} d5 {[%emt 0:00:03]} 7. Be2 {[%emt 0:00:00]} Ne4 {[%emt 0:00:08]} 8. cxd4 {[%emt 0:00:01]} Bb4+ {[%emt 0:00:00]} 9. Bd2 {[%emt 0:00:01]} Nxd2 {[%emt 0:00:11]} 10. Nbxd2 {[%emt 0:00:00]} O-O {[%emt 0:00:04] C54: Giuoco Piano: 4 c3 Nf6, main lines with 5 d4 and 5 d3.} 11. O-O {[%emt 0:00:01]} Ne7 {[%emt 0:01:24]} 12. Nb3 {[%emt 0:00:33] [#] Threatens to win with a3.} Nf5 $146 {[%emt 0:00:26] The position is equal.} ({Predecessor:} 12... Ng6 13. a3 Be7 14. Qd2 c6 15. Rae1 Bf5 16. Bd3 Qd7 17. Nc1 Rae8 18. Bxf5 Qxf5 19. Ne2 Bd8 20. Ng3 Qd7 21. Re2 {½-½ Godena,M (2513)-Carnicelli,V (2102) Porto San Giorgio op 25th 2014 (1)}) 13. Rc1 {[%emt 0:00:17]} c6 {[%emt 0:00:02]} 14. Bd3 {[%emt 0:00:09]} Nh4 {[%emt 0:00:17]} 15. Nxh4 {[%emt 0:00:18]} Qxh4 {[%emt 0:00:01]} 16. f4 {[%emt 0:00:01]} f5 {[%emt 0:00:21]} 17. a3 {[%emt 0:00:28]} Be7 {[%emt 0:00:02]} 18. Na5 {[%emt 0:00:02]} Bd8 {[%emt 0:00:10]} 19. b4 {[%emt 0:00:03]} Qe7 {[%emt 0:01:40]} 20. Qd2 {[%emt 0:00:23]} g6 {[%emt 0:00:57]} 21. Nb3 {[%emt 0:00:23]} a5 {[%emt 0:01:38]} 22. Nxa5 {[%emt 0:00:22] White is more active.} Bb6 {[%emt 0:00:04]} 23. Be2 {[%emt 0:00:12]} Qd8 {[%emt 0:00:10]} 24. Nb3 {[%emt 0:00:37]} Rxa3 {[%emt 0:00:01]} 25. Nc5 {[%emt 0:00:01]} Bxc5 {[%emt 0:00:17]} 26. bxc5 {[%emt 0:00:17]} Be6 {[%emt 0:00:01]} 27. Ra1 {[%emt 0:00:17]} Qa8 {[%emt 0:00:07]} 28. Qb2 {[%emt 0:00:01]} Ra4 {[%emt 0:00:23][%mdl 8192] [#]} (28... Rxa1 $16 29. Rxa1 Qc8) 29. Rxa4 $18 {[%emt 0:00:08]} Qxa4 {[%emt 0:00:02]} 30. Ra1 {[%emt 0:00:01] Weighted Error Value: White=0.04 (flawless) /Black=0.15 (very precise)} ({Worse is} 30. Qxb7 Qxd4+ 31. Kh1 Qxc5 $15) 1-0

[Event "CCT Airthings Masters Play-In 2023"]
[Site "Online"]
[Date "2023.02.03"]
[Round "4"]
[White "Shield12"]
[Black "Dominguez Perez, Leinier"]
[Result "1-0"]
[ECO "B51"]
[WhiteElo "2620"]
[BlackElo "2743"]
[Annotator "NA"]
[PlyCount "131"]
[EventDate "2023.02.03"]
[EventType "swiss"]
[EventCountry "NET"]
[SourceTitle "playchess.com"]
[Source "ChessBase"]
[SourceQuality "1"]
[TimeControl "600+2"]

1. e4 {[%emt 0:00:03]} c5 {[%emt 0:00:05]} 2. Nf3 {[%emt 0:00:01]} d6 {[%emt 0:00:01]} 3. Bb5+ {[%emt 0:00:01]} Nd7 {[%emt 0:00:02]} 4. a4 {[%emt 0:00:01]} Ngf6 {[%emt 0:00:09]} 5. Nc3 {[%emt 0:00:01]} a6 {[%emt 0:00:02]} 6. Be2 {[%emt 0:00:01]} g6 {[%emt 0:00:01]} 7. d4 {[%emt 0:00:02]} cxd4 {[%emt 0:00:13]} 8. Nxd4 {[%emt 0:00:00]} Bg7 {[%emt 0:00:01]} 9. O-O {[%emt 0:00:01]} b6 {[%emt 0:00:43]} 10. Nc6 {[%emt 0:00:03]} Qc7 {[%emt 0:00:01]} 11. Nb4 {[%emt 0:00:00]} Bb7 {[%emt 0:00:01]} 12. Nbd5 {[%emt 0:00:02]} Nxd5 {[%emt 0:00:01]} 13. Nxd5 {[%emt 0:00:00]} Qd8 {[%emt 0:00:01]} 14. Be3 {[%emt 0:00:01]} O-O {[%emt 0:00:05]} 15. Bd4 {[%emt 0:00:20]} Bxd4 {[%emt 0:00:09]} 16. Qxd4 {[%emt 0:00:00]} e5 {[%emt 0:00:00]} 17. Qd2 {[%emt 0:00:04]} Bxd5 {[%emt 0:00:02]} 18. Qxd5 {[%emt 0:00:02]} Nf6 {[%emt 0:00:03]} 19. Qd3 {[%emt 0:00:03]} Qc7 {[%emt 0:00:03]} 20. Rfd1 {[%emt 0:00:03]} Rfd8 {[%emt 0:00:03]} 21. c3 {[%emt 0:00:31]} Kg7 {[%emt 0:00:35]} 22. Bf3 {[%emt 0:00:22]} a5 {[%emt 0:01:14]} 23. Qb5 {[%emt 0:00:14]} Qc5 {[%emt 0:00:41]} 24. Rd2 {[%emt 0:00:53]} Qxb5 {[%emt 0:00:11]} 25. axb5 {[%emt 0:00:00]} Kf8 {[%emt 0:00:04]} 26. g3 {[%emt 0:00:07]} Ke7 {[%emt 0:00:04]} 27. b3 {[%emt 0:00:25]} Rac8 {[%emt 0:00:36]} 28. c4 {[%emt 0:00:02]} Nd7 {[%emt 0:01:06]} 29. Bg4 {[%emt 0:00:07]} Nc5 {[%emt 0:00:02]} 30. Bxc8 {[%emt 0:00:28]} Nxb3 {[%emt 0:00:01]} 31. Rb2 {[%emt 0:01:28]} Nxa1 {[%emt 0:00:02]} 32. Bb7 {[%emt 0:00:01]} Rd7 {[%emt 0:00:23]} 33. Bd5 {[%emt 0:00:10]} a4 {[%emt 0:01:55]} 34. Ra2 {[%emt 0:00:02]} Nb3 {[%emt 0:00:01]} 35. Rxa4 {[%emt 0:00:01]} Nc5 {[%emt 0:00:03]} 36. Ra8 {[%emt 0:00:02]} Rd8 {[%emt 0:00:02]} 37. Ra6 {[%emt 0:00:20]} Nd7 {[%emt 0:00:12]} 38. Bc6 {[%emt 0:00:10]} Ke6 {[%emt 0:00:17]} 39. Ra7 {[%emt 0:00:54]} f5 {[%emt 0:00:24]} 40. f3 {[%emt 0:00:07]} f4 {[%emt 0:00:23]} 41. Rb7 {[%emt 0:00:12]} g5 {[%emt 0:00:11]} 42. g4 {[%emt 0:00:36]} h6 {[%emt 0:00:31]} 43. h3 {[%emt 0:00:15]} Ke7 {[%emt 0:00:12]} 44. Kf2 {[%emt 0:00:07]} Ke6 {[%emt 0:00:01]} 45. Ke2 {[%emt 0:00:01]} Nc5 {[%emt 0:00:20]} 46. Rxb6 {[%emt 0:00:02]} h5 {[%emt 0:00:03]} 47. Bd5+ {[%emt 0:00:11]} Ke7 {[%emt 0:00:01]} 48. Rc6 {[%emt 0:02:03]} hxg4 {[%emt 0:00:00]} 49. hxg4 {[%emt 0:00:01]} Rh8 {[%emt 0:00:02]} 50. b6 {[%emt 0:00:08]} Rh2+ {[%emt 0:00:02]} 51. Kd1 {[%emt 0:00:03]} Rb2 {[%emt 0:00:00]} 52. Rc7+ {[%emt 0:00:19]} Kd8 {[%emt 0:00:02]} 53. Rg7 {[%emt 0:00:04]} Rxb6 {[%emt 0:00:01]} 54. Rxg5 {[%emt 0:00:01]} Rb3 {[%emt 0:00:02]} 55. Rg8+ {[%emt 0:00:21]} Ke7 {[%emt 0:00:01]} 56. g5 {[%emt 0:00:02]} Rxf3 {[%emt 0:00:01]} 57. Rg7+ {[%emt 0:00:01]} Ke8 {[%emt 0:00:09]} 58. g6 {[%emt 0:00:03]} Rg3 {[%emt 0:00:01]} 59. Ra7 {[%emt 0:00:03]} Kf8 {[%emt 0:00:05]} 60. Rf7+ {[%emt 0:00:04]} Ke8 {[%emt 0:00:03]} 61. g7 {[%emt 0:00:01]} Nxe4 {[%emt 0:00:08]} 62. Rf8+ {[%emt 0:00:03]} Ke7 {[%emt 0:00:01]} 63. g8=Q {[%emt 0:00:00]} Rxg8 {[%emt 0:00:01]} 64. Rxg8 {[%emt 0:00:00]} Nc5 {[%emt 0:00:06]} 65. Rg6 {[%emt 0:00:02]} e4 {[%emt 0:00:02]} 66. Ke2 {[%emt 0:00:02]} 1-0

[Event "CCT Airthings Masters Play-In 2023"]
[Site "Online"]
[Date "2023.02.03"]
[Round "4"]
[White "TheCount"]
[Black "titan013"]
[Result "0-1"]
[ECO "C43"]
[WhiteElo "2616"]
[BlackElo "2488"]
[Annotator "NA"]
[PlyCount "74"]
[EventDate "2023.02.03"]
[EventType "swiss"]
[EventCountry "NET"]
[SourceTitle "playchess.com"]
[Source "ChessBase"]
[SourceQuality "1"]
[TimeControl "600+2"]

1. e4 {[%emt 0:00:05]} e5 {[%emt 0:00:52]} 2. Nf3 {[%emt 0:00:07]} Nf6 {[%emt 0:00:03]} 3. d4 {[%emt 0:00:38]} Nxe4 {[%emt 0:00:05]} 4. Bd3 {[%emt 0:00:11]} d5 {[%emt 0:00:06]} 5. Nxe5 {[%emt 0:00:03]} Nd7 {[%emt 0:00:04]} 6. O-O {[%emt 0:00:27]} Nxe5 {[%emt 0:00:09]} 7. dxe5 {[%emt 0:00:00]} Nc5 {[%emt 0:00:01]} 8. Nc3 {[%emt 0:00:09]} c6 {[%emt 0:00:09]} 9. f4 {[%emt 0:00:18]} g6 {[%emt 0:00:04]} 10. Ne2 {[%emt 0:00:09]} Nxd3 {[%emt 0:00:19]} 11. Qxd3 {[%emt 0:00:17]} Bf5 {[%emt 0:00:02]} 12. Qd1 {[%emt 0:00:19]} Bc5+ {[%emt 0:00:02]} 13. Kh1 {[%emt 0:00:01]} h5 {[%emt 0:00:04]} 14. Nd4 {[%emt 0:00:28]} Bxd4 {[%emt 0:00:44]} 15. Qxd4 {[%emt 0:00:01]} Bxc2 {[%emt 0:00:00]} 16. e6 {[%emt 0:00:49]} f6 {[%emt 0:00:21]} 17. b3 {[%emt 0:00:25]} Qe7 {[%emt 0:00:06]} 18. a4 {[%emt 0:00:16]} Qxe6 {[%emt 0:00:10]} 19. Ba3 {[%emt 0:00:04]} Kf7 {[%emt 0:00:05]} 20. Rae1 {[%emt 0:02:29]} Be4 {[%emt 0:00:03]} 21. Bb2 {[%emt 0:00:05]} h4 {[%emt 0:00:06]} 22. Kg1 {[%emt 0:00:39]} h3 {[%emt 0:00:04]} 23. g3 {[%emt 0:00:00]} b6 {[%emt 0:00:09]} 24. b4 {[%emt 0:00:14]} Rac8 {[%emt 0:00:02]} 25. Rc1 {[%emt 0:00:03]} Qd6 {[%emt 0:00:13]} 26. Rfe1 {[%emt 0:00:26]} c5 {[%emt 0:00:18]} 27. bxc5 {[%emt 0:00:06]} bxc5 {[%emt 0:00:00]} 28. Qc3 {[%emt 0:00:02]} d4 {[%emt 0:00:26]} 29. Qa5 {[%emt 0:00:02]} Bb7 {[%emt 0:00:17]} 30. Qb5 {[%emt 0:01:37]} Qd5 {[%emt 0:00:02]} 31. Re2 {[%emt 0:00:01]} d3 {[%emt 0:01:01]} 32. Rd2 {[%emt 0:00:28]} Qh1+ {[%emt 0:00:48]} 33. Kf2 {[%emt 0:00:02]} Qf3+ {[%emt 0:00:01]} 34. Kg1 {[%emt 0:00:03]} Rhe8 {[%emt 0:00:06]} 35. Qb3+ {[%emt 0:00:05]} Bd5 {[%emt 0:00:05]} 36. Qxd3 {[%emt 0:00:02]} Qh1+ {[%emt 0:00:02]} 37. Kf2 {[%emt 0:00:00]} Qg2# {[%emt 0:00:00]} 0-1

[Event "CCT Airthings Masters Play-In 2023"]
[Site "Online"]
[Date "2023.02.03"]
[Round "4"]
[White "vladislavkovalev"]
[Black "Harsha_Bharathakoti"]
[Result "1-0"]
[ECO "B23"]
[WhiteElo "2615"]
[BlackElo "2512"]
[Annotator "TA"]
[PlyCount "59"]
[EventDate "2023.02.03"]
[EventType "swiss"]
[EventCountry "NET"]
[SourceTitle "playchess.com"]
[Source "ChessBase"]
[SourceQuality "1"]
[TimeControl "600+2"]

{[%evp 11,59,1,10,6,5,0,23,0,0,0,0,0,111,30,34,33,35,12,26,14,6,13,21,6,3,18,12,0,11,7,22,21,26,13,11,11,15,10,39,0,12,13,29,26,34,22,108,29,432,443]} 1. e4 {[%emt 0:00:05]} c5 {[%emt 0:00:07]} 2. Nc3 {[%emt 0:00:05]} e6 {[%emt 0:00:02]} 3. g3 {[%emt 0:00:02]} a6 {[%emt 0:00:08]} 4. Bg2 {[%emt 0:00:01]} b5 {[%emt 0:00:01]} 5. d3 {[%emt 0:00:06]} Bb7 {[%emt 0:00:01]} 6. f4 {[%emt 0:00:00]} d5 {[%emt 0:01:27]} 7. Qe2 {[%emt 0:01:41] Recently 7.f5 got a lot of attention. B23: Closed Sicilian: Lines without g3.} b4 {[%emt 0:01:17]} 8. Nd1 {[%emt 0:00:29]} Nf6 {[%emt 0:01:20]} 9. exd5 {[%emt 0:00:10] White has an edge.} (9. c4 $5 {[%cal Rc4d5]}) 9... Bxd5 {[%emt 0:00:08]} 10. Nf3 {[%emt 0:00:02]} Be7 {[%emt 0:00:03]} 11. Ne3 {[%emt 0:00:02] [#]} Bb7 $146 {[%emt 0:00:11]} (11... O-O $11) ({Predecessor:} 11... O-O 12. Nxd5 exd5 13. O-O Re8 14. h3 Nc6 15. Qf2 Nd7 16. Be3 Bf6 17. Ne5 Ndxe5 18. fxe5 Rxe5 {½-½ Houska,J (2298)-Souleidis,G (2401) Bundesliga 0405 2004 (5.7)}) 12. Nc4 {[%emt 0:00:24]} (12. f5 $16) 12... O-O {[%emt 0:00:03]} 13. O-O {[%emt 0:00:15][%cal Of4f5]} Nc6 {[%emt 0:00:09]} 14. Be3 {[%emt 0:00:04]} Nd5 {[%emt 0:01:30]} 15. Nfe5 {[%emt 0:00:45]} Nxe5 {[%emt 0:00:17]} 16. fxe5 {[%emt 0:00:01]} Qc7 {[%emt 0:00:26]} 17. Bd2 {[%emt 0:00:19]} Nb6 {[%emt 0:00:23]} 18. Bxb7 {[%emt 0:01:22]} Qxb7 {[%emt 0:00:03]} 19. Na5 {[%emt 0:00:04]} Qd5 {[%emt 0:00:15][%cal Oc5c4] ...c4! is the strong threat.} 20. b3 {[%emt 0:00:05]} Rad8 {[%emt 0:01:27][%cal Oc5c4]} 21. h4 {[%emt 0:00:42]} f5 {[%emt 0:01:01]} 22. exf6 {[%emt 0:00:01]} Bxf6 {[%emt 0:00:01]} 23. Rae1 {[%emt 0:00:05]} Bd4+ {[%emt 0:00:04]} 24. Kh2 {[%emt 0:00:01]} e5 {[%emt 0:00:01]} (24... h6 {looks sharper.} 25. Be3 e5 26. Bxd4 exd4 27. Kg1 Rxf1+ 28. Qxf1 Rf8) 25. Qg2 {[%emt 0:00:16]} (25. a3 {is interesting.} Nd7 26. axb4 Nf6 27. Bg5) 25... Qxg2+ {[%emt 0:00:16]} 26. Kxg2 {[%emt 0:00:00]} Rd6 {[%emt 0:00:00]} 27. Rxf8+ {[%emt 0:01:24]} Kxf8 {[%emt 0:00:01]} 28. Be3 {[%emt 0:00:00]} Nd5 {[%emt 0:00:07]} (28... Re6 $11 {keeps the balance.}) 29. Nc4 {[%emt 0:00:50]} (29. Bxd4 $16 exd4 30. Nb7) 29... Bxe3 {[%emt 0:00:06][%mdl 8192] [#]} 30. Nxd6 {[%emt 0:00:03] Weighted Error Value: White=0.20 (precise) /Black=0.45} 1-0